fUST/lending_fUST_20260206
["ID","MTS","AMOUNT","RATE_DAILY","PERIOD"]
[404648580,1770378640712,-2122.36,0.000278,2]
[404648582,1770378640721,-503.67530563,0.00027945,5]
[404648584,1770378640731,-500.0,0.00027988,2]
[404648586,1770378640740,-100000.0,0.0002799,2]
[404648588,1770378640749,-2085.36783123,0.00028,2]
[404648591,1770378640767,-11607.55386814,0.00028,2]
[404648593,1770378640776,-209.40437684,0.0002807,2]
[404648594,1770378640785,-217.15233878,0.0002807,2]
[404648596,1770378640795,-225.18697532,0.0002807,2]
[404648599,1770378640804,-233.51889341,0.0002807,2]
[404648601,1770378640814,-242.15909246,0.0002807,2]
[404648602,1770378640823,-251.11897888,0.0002807,2]
[404648605,1770378640832,-260.4103811,0.0002807,2]
[404648607,1770378640842,-270.0455652,0.0002807,2]
[404648609,1770378640851,-280.03725112,0.0002807,2]
[404648611,1770378640860,-290.39862941,0.0002807,2]
[404648613,1770378640870,-301.1433787,0.0002807,2]
[404648615,1770378640880,-151.0,0.000281,14]
[404648617,1770378640890,-370.38475489,0.0002813,2]
[404648619,1770378640900,-719.0,0.00028332,2]
[404648620,1770378640910,-179.0,0.00028332,2]
[404648623,1770378640920,-151.0,0.000284,20]
[404648624,1770378640929,-151.0,0.000284,12]
[404648627,1770378640939,-37509.0617111,0.00028413,2]
[404648629,1770378640948,-730.0,0.00028415,3]
[404648631,1770378640957,-29791.56953833,0.00028423,2]
[404648644,1770378641072,-500.0,0.00025974,2]
[404648646,1770378641081,-500.0,0.00025974,2]
[404648648,1770378641090,-500.0,0.00025974,2]
[404648650,1770378641099,-5133.6226287,0.000261,2]
[404649043,1770378644889,-250.0,0.00025974,2]
[404649045,1770378644899,-2426.48009157,0.000261,2]
[404649047,1770378644911,-2650.40727973,0.000261,2]
[404649049,1770378644921,-10210.51,0.000278,2]
[404649050,1770378644930,-42212.90513606,0.00028423,2]
[404649051,1770378644941,-18754.5308556,0.0002869,2]
[404649052,1770378644950,-382.42,0.0002869,10]
[404649053,1770378644960,-183.07,0.000287,2]
[404649054,1770378644970,-151.0,0.000287,17]
[404649055,1770378644980,-151.0,0.000287,13]
[404649056,1770378644989,-151.0,0.000287,16]
[404649057,1770378644999,-52544.54074208,0.000287,2]
[404649058,1770378645011,-468.22118139,0.000287,2]
[404649059,1770378645021,-151.0,0.000287,17]
[404649060,1770378645031,-3397.56516181,0.000287,2]
[404649209,1770378646564,-10713.02230615,0.000287,2]
[404649422,1770379209552,200.0,0.0002,10]
[404649424,1770379262269,10000.0,0.000225,120]
[404649425,1770379262831,-6851.43775267,0.000225,10]
[404649426,1770379292551,600.0,0.00018,2]
[404649427,1770379293123,940.69080666,0.00022098,2]
[404649428,1770379294352,7732.000001,0.00025,120]
[404649429,1770379340485,3148.56224733,0.0003,120]
[404649432,1770379384298,500.0,0.00013273,2]
[404649433,1770379384349,1000.0,0.00013821,2]
[404649434,1770379384403,1500.0,0.00014368,2]
[404649437,1770379510475,245.81439108,0.00013699,2]
[404649441,1770379592831,500.0,0.00019515,2]
[404649442,1770379601559,5805.57,0.00030137,120]
[404649471,1770379626749,500.0,0.00013699,2]
[404649472,1770379626924,1000.0,0.00014247,2]
[404649473,1770379633546,1000.0,0.00030137,120]
[404649475,1770379641236,2000.0,0.00030137,120]
[404649476,1770379647945,5000.0,0.00030137,120]
[404649478,1770379693525,1000.0,0.00030137,120]
[404649479,1770379699864,1000.0,0.00030137,120]
[404649480,1770379708258,2000.0,0.00030137,120]
[404649483,1770379714560,2000.0,0.00030137,120]
[404649493,1770379746630,1500.0,0.00030137,120]
[404649495,1770379776838,10000.0,0.00018022,2]
[404649498,1770379785227,0.01,0.00018022,2]
[404649499,1770379785249,9999.99,0.00018022,2]
[404649500,1770379787153,1000.0,0.00030137,120]
[404649503,1770379804976,410.0,0.00030137,120]
[404649541,1770379838443,-958.46761927,0.00018022,2]
[404649542,1770379838456,-736.33861191,0.00018022,2]
[404649880,1770379846962,-5305.19376882,0.00018022,2]
[404649881,1770379846972,-237.51,0.00022781,2]
[404649882,1770379846982,-6123.93729839,0.00022781,2]
[404649883,1770379846992,-5000.0,0.00023336,2]
[404649884,1770379847002,-237.51,0.00023464,2]
[404649885,1770379847012,-150.0,0.00023573,2]
[404649886,1770379847022,-237.51,0.00024168,2]
[404649887,1770379847032,-6686.8537313,0.00024704,2]
[404649888,1770379847041,-221.1753407,0.00024833,2]
[404649889,1770379847051,-165.326,0.00025058,2]
[404649890,1770379847061,-150.0,0.00025205,2]
[404649891,1770379847071,-1000.0,0.00025221,30]
[404649892,1770379847080,-615.489,0.00025597,2]
[404649893,1770379847090,-2158.0,0.00025597,2]
[404649894,1770379847099,-852.30736863,0.00025715,2]
[404649895,1770379847110,-1349.7962772,0.000268,2]
[404649896,1770379847119,-175.76,0.000269,7]
[404649897,1770379847129,-154.898,0.000269,14]
[404649898,1770379847139,-600.0,0.00027103,30]
[404649900,1770379847297,-246.92316993,0.00027839,2]
[404649901,1770379847306,-177.1508896,0.00028235,2]
[404649902,1770379847316,-9609.46259717,0.00028683,2]
[404649903,1770379847326,-6563.31601737,0.00028685,2]
[404649904,1770379847336,-184.42,0.0002869,10]
[404649905,1770379847346,-287.95,0.0002869,10]
[404649906,1770379847355,-239.95,0.0002869,10]
[404649907,1770379847365,-57656.775583,0.000287,2]
[404649908,1770379847375,-711.0,0.00028705,3]
[404649909,1770379847384,-92432.31143913,0.0002871,2]
[404649910,1770379847415,-62.24332559,0.0002871,2]
[404650009,1770379985025,2682.03,0.00026572,120]
[404650010,1770379985294,2682.03,0.00026572,120]
[404650011,1770379985543,2682.03,0.00026572,120]
[404650012,1770379985806,2682.03,0.000287,120]
[404650013,1770379986040,2682.03,0.000287,120]
[404650014,1770379986275,2682.03,0.000287,120]
[404650015,1770379986540,2682.03,0.00028709,120]
[404650016,1770379986773,2682.03,0.00028709,120]
[404650017,1770379987005,2682.03,0.00028709,120]
[404650018,1770379987273,2682.03,0.00028709,120]
[404650019,1770379987570,2682.03,0.00028709,120]
[404650020,1770379987812,2682.03,0.00028709,120]
[404650021,1770379988038,2682.03,0.00028709,120]
[404650022,1770379988618,2682.03,0.00028709,120]
[404650023,1770379988863,2682.03,0.00028709,120]
[404650024,1770379989097,2682.03,0.00028709,120]
[404650025,1770379989334,2682.03,0.00028709,120]
[404650026,1770379989890,2682.03,0.00028709,120]
[404650027,1770379990175,2682.03,0.00028709,120]
[404650028,1770379990875,2682.03,0.00028709,120]
[404650029,1770379991113,2682.03,0.00028709,120]
[404650030,1770379991358,2682.03,0.00028709,120]
[404650031,1770379991601,2682.03,0.00028709,120]
[404650032,1770379991834,2682.09789676,0.00028709,120]
[404650144,1770380300992,213.01095848,0.0003,120]
[404650290,1770380883144,425.59632822,0.00010618,2]
[404650291,1770380889745,189.90894925,0.0001,2]
[404650294,1770380912970,10000.0,0.0003,120]
[404650313,1770380963208,27671.0,0.000301,120]
[404650316,1770380987117,1331.0,0.000301,120]
[404650762,1770381037676,-3181.22714961,0.0001683,2]
[404650763,1770381037686,-608.44128657,0.000169,2]
[404650764,1770381037695,-3563.59096905,0.00017,2]
[404650765,1770381037706,-1200.0,0.0002102,2]
[404650766,1770381037716,-2037.61751482,0.00021021,2]
[404650767,1770381037725,-300.0,0.00021446,2]
[404650768,1770381037735,-300.0,0.00021446,2]
[404650769,1770381037744,-300.0,0.00021446,2]
[404650770,1770381037754,-300.0,0.00021446,2]
[404650772,1770381037763,-6063.98599459,0.00021447,2]
[404650773,1770381037772,-201.88,0.00022781,2]
[404650774,1770381037781,-420.0,0.00023318,2]
[404650775,1770381037791,-201.88,0.00023464,2]
[404650776,1770381037800,-201.88,0.00024168,2]
[404650777,1770381037808,-265.6445,0.00024694,2]
[404650778,1770381037818,-1196.73255257,0.00025,30]
[404650779,1770381037827,-204.12586819,0.00027112,2]
[404650780,1770381037836,-835.469754,0.0002744,2]
[404650781,1770381037845,-164.61544662,0.00027849,2]
[404650782,1770381037854,-3020.4163099,0.00027918,2]
[404650783,1770381037864,-371.04571287,0.00028251,7]
[404650784,1770381037873,-835.469754,0.00028596,2]
[404650785,1770381037882,-1394.43870118,0.000286,2]
[404650786,1770381037892,-500.0,0.00028699,2]
[404650787,1770381037901,-199.96,0.00028699,10]
[404650788,1770381037911,-166.64,0.00028699,10]
[404650789,1770381037919,-6246.15068816,0.00028699,2]
[404650790,1770381037929,-158.19,0.000287,7]
[404650791,1770381037938,-154.898,0.000287,20]
[404650792,1770381037948,-24984.6027526,0.000287,2]
[404650793,1770381037958,-268.74687228,0.00028709,2]
[404650794,1770381037967,-500.0,0.00028709,2]
[404650795,1770381037977,-500.0,0.00028709,2]
[404650796,1770381037987,-500.0,0.00028709,2]
[404650797,1770381037996,-500.0,0.00028709,2]
[404650798,1770381038006,-500.0,0.00028709,2]
[404650799,1770381038015,-354.30636311,0.00028709,2]
[404650800,1770381038025,-500.0,0.00028709,2]
[404650801,1770381038035,-500.0,0.00028709,2]
[404650802,1770381038046,-500.0,0.00028709,2]
[404650803,1770381038055,-500.0,0.00028709,2]
[404650804,1770381038065,-500.0,0.00028709,2]
[404650805,1770381038074,-500.0,0.00028709,2]
[404650806,1770381038085,-500.0,0.00028709,2]
[404650807,1770381038095,-500.0,0.00028709,2]
[404650808,1770381038105,-500.0,0.00028709,2]
[404650809,1770381038115,-500.0,0.00028709,2]
[404650810,1770381038125,-500.0,0.00028709,2]
[404650811,1770381038134,-500.0,0.00028709,2]
[404650812,1770381038144,-500.0,0.00028709,2]
[404650813,1770381038153,-466.20842882,0.00028709,2]
[404650814,1770381038162,-255.37751883,0.00028709,2]
[404650815,1770381038171,-500.0,0.00028709,2]
[404650816,1770381038181,-500.0,0.00028709,2]
[404650817,1770381038190,-500.0,0.00028709,2]
[404650818,1770381038200,-500.0,0.00028709,2]
[404650819,1770381038210,-500.0,0.00028709,2]
[404650820,1770381038220,-500.0,0.00028709,2]
[404650821,1770381038229,-500.0,0.00028709,2]
[404650822,1770381038239,-500.0,0.00028709,2]
[404650823,1770381038248,-500.0,0.00028709,2]
[404650824,1770381038258,-500.0,0.00028709,2]
[404650825,1770381038267,-500.0,0.00028709,2]
[404650826,1770381038277,-369.67586699,0.00028709,2]
[404650827,1770381038286,-500.0,0.00028709,2]
[404650828,1770381038296,-500.0,0.00028709,2]
[404650829,1770381038305,-500.0,0.00028709,2]
[404650830,1770381038314,-500.0,0.00028709,2]
[404650831,1770381038324,-500.0,0.00028709,2]
[404650832,1770381038334,-500.0,0.00028709,2]
[404650833,1770381038344,-500.0,0.00028709,2]
[404650834,1770381038487,-500.0,0.00028709,2]
[404650835,1770381038497,-500.0,0.00028709,2]
[404650836,1770381038506,-500.0,0.00028709,2]
[404650837,1770381038516,-500.0,0.00028709,2]
[404650838,1770381038526,-500.0,0.00028709,2]
[404650839,1770381038536,-500.0,0.00028709,2]
[404650840,1770381038545,-500.0,0.00028709,2]
[404650841,1770381038555,-784.8698702,0.00028709,2]
[404650842,1770381038564,-784.8698702,0.00028709,2]
[404650843,1770381038574,-784.8698702,0.00028709,2]
[404650844,1770381038584,-784.8698702,0.00028709,2]
[404650845,1770381038594,-784.8698702,0.00028709,2]
[404650846,1770381038604,-784.8698702,0.00028709,2]
[404650847,1770381038613,-784.8698702,0.00028709,2]
[404650848,1770381038623,-784.8698702,0.00028709,2]
[404650849,1770381038633,-784.8698702,0.00028709,2]
[404650850,1770381038642,-784.8698702,0.00028709,2]
[404650851,1770381038652,-784.8698702,0.00028709,2]
[404650852,1770381038661,-784.8698702,0.00028709,2]
[404650853,1770381038671,-784.8698702,0.00028709,2]
[404650854,1770381038681,-784.8698702,0.00028709,2]
[404650855,1770381038690,-784.8698702,0.00028709,2]
[404650856,1770381038699,-784.8698702,0.00028709,2]
[404650857,1770381038710,-784.8698702,0.00028709,2]
[404650858,1770381038719,-784.8698702,0.00028709,2]
[404650859,1770381038728,-784.8698702,0.00028709,2]
[404650860,1770381038737,-784.8698702,0.00028709,2]
[404650861,1770381038746,-784.8698702,0.00028709,2]
[404650862,1770381038756,-784.8698702,0.00028709,2]
[404650863,1770381038765,-784.8698702,0.00028709,2]
[404650864,1770381038775,-784.8698702,0.00028709,2]
[404650865,1770381038786,-784.8698702,0.00028709,2]
[404650866,1770381038795,-784.8698702,0.00028709,2]
[404650867,1770381038804,-784.8698702,0.00028709,2]
[404650868,1770381038815,-784.8698702,0.00028709,2]
[404650869,1770381038824,-784.8698702,0.00028709,2]
[404650870,1770381038834,-784.8698702,0.00028709,2]
[404650871,1770381038844,-784.8698702,0.00028709,2]
[404650872,1770381038854,-784.8698702,0.00028709,2]
[404650873,1770381038863,-784.8698702,0.00028709,2]
[404650874,1770381038874,-784.8698702,0.00028709,2]
[404650875,1770381038884,-784.8698702,0.00028709,2]
[404650876,1770381038895,-784.8698702,0.00028709,2]
[404650877,1770381038904,-784.8698702,0.00028709,2]
[404650878,1770381038914,-784.8698702,0.00028709,2]
[404650879,1770381038925,-500.0,0.00028709,2]
[404650880,1770381038935,-784.8698702,0.00028709,2]
[404650881,1770381038946,-501.23387845,0.00028709,2]
[404650882,1770381038957,-784.8698702,0.00028709,2]
[404650883,1770381038967,-784.8698702,0.00028709,2]
[404650884,1770381038977,-784.8698702,0.00028709,2]
[404650885,1770381038987,-784.8698702,0.00028709,2]
[404650886,1770381038997,-784.8698702,0.00028709,2]
[404650887,1770381039007,-784.8698702,0.00028709,2]
[404650888,1770381039017,-784.8698702,0.00028709,2]
[404650889,1770381039026,-784.8698702,0.00028709,2]
[404650890,1770381039036,-784.8698702,0.00028709,2]
[404650891,1770381039049,-784.8698702,0.00028709,2]
[404650892,1770381039059,-784.8698702,0.00028709,2]
[404650893,1770381039068,-784.8698702,0.00028709,2]
[404650894,1770381039079,-784.8698702,0.00028709,2]
[404650895,1770381039089,-784.8698702,0.00028709,2]
[404650896,1770381039099,-784.8698702,0.00028709,2]
[404650897,1770381039108,-784.8698702,0.00028709,2]
[404650898,1770381039119,-784.8698702,0.00028709,2]
[404650899,1770381039128,-784.8698702,0.00028709,2]
[404650900,1770381039138,-784.8698702,0.00028709,2]
[404650901,1770381039148,-784.8698702,0.00028709,2]
[404650902,1770381039158,-784.8698702,0.00028709,2]
[404650903,1770381039168,-784.8698702,0.00028709,2]
[404650904,1770381039177,-784.8698702,0.00028709,2]
[404650905,1770381039187,-784.8698702,0.00028709,2]
[404650906,1770381039197,-784.8698702,0.00028709,2]
[404650907,1770381039208,-758.70754119,0.00028709,2]
[404650908,1770381039217,-758.70754119,0.00028709,2]
[404650909,1770381039227,-758.70754119,0.00028709,2]
[404650910,1770381039237,-758.70754119,0.00028709,2]
[404650911,1770381039246,-758.70754119,0.00028709,2]
[404650912,1770381039256,-758.70754119,0.00028709,2]
[404650913,1770381039265,-758.70754119,0.00028709,2]
[404650914,1770381039275,-758.70754119,0.00028709,2]
[404650915,1770381039284,-758.70754119,0.00028709,2]
[404650916,1770381039294,-758.70754119,0.00028709,2]
[404650917,1770381039303,-758.70754119,0.00028709,2]
[404650918,1770381039313,-758.70754119,0.00028709,2]
[404650919,1770381039323,-758.70754119,0.00028709,2]
[404650920,1770381039332,-758.70754119,0.00028709,2]
[404650921,1770381039341,-758.70754119,0.00028709,2]
[404650922,1770381039351,-758.70754119,0.00028709,2]
[404650923,1770381039360,-758.70754119,0.00028709,2]
[404650924,1770381039369,-758.70754119,0.00028709,2]
[404650925,1770381039378,-758.70754119,0.00028709,2]
[404650926,1770381039388,-758.70754119,0.00028709,2]
[404650927,1770381039397,-435.02843092,0.00028709,2]
[404650929,1770381039439,-323.67911027,0.00028709,2]
[404650930,1770381039449,-10.53141273,0.00028709,2]
[404650931,1770381039463,-748.17612846,0.00028709,2]
[404650932,1770381039473,-758.70754119,0.00028709,2]
[404650933,1770381039483,-758.70754119,0.00028709,2]
[404650934,1770381039493,-758.70754119,0.00028709,2]
[404650935,1770381039502,-758.70754119,0.00028709,2]
[404650936,1770381039512,-500.0,0.00028709,2]
[404650937,1770381039521,-500.0,0.00028709,2]
[404650938,1770381039531,-500.0,0.00028709,2]
[404650940,1770381039540,-500.0,0.00028709,2]
[404650941,1770381039550,-500.0,0.00028709,2]
[404650943,1770381039559,-500.0,0.00028709,2]
[404650944,1770381039569,-500.0,0.00028709,2]
[404650945,1770381039578,-500.0,0.00028709,2]
[404650946,1770381039587,-500.0,0.00028709,2]
[404650948,1770381039596,-500.0,0.00028709,2]
[404650950,1770381039606,-500.0,0.00028709,2]
[404650952,1770381039615,-758.70754111,0.00028709,2]
[404650954,1770381039624,-520.78439888,0.00028709,2]
[404650956,1770381039634,-500.0,0.00028709,2]
[404650958,1770381039643,-500.0,0.00028709,2]
[404650960,1770381039653,-500.0,0.00028709,2]
[404650962,1770381039662,-500.0,0.00028709,2]
[404650964,1770381039671,-500.0,0.00028709,2]
[404650966,1770381039680,-500.0,0.00028709,2]
[404650968,1770381039689,-500.0,0.00028709,2]
[404650970,1770381039698,-401.47928318,0.00028709,2]
[404650971,1770381039708,-500.0,0.00028709,2]
[404650973,1770381039717,-60677.23660685,0.0002871,2]
[404651006,1770381040037,-833.2,0.00028699,10]
[404651007,1770381040050,-12358.30415347,0.0002871,2]
[404651535,1770381045036,-13208.07924353,0.0002871,2]
[404651664,1770381045933,-1075.6164,0.0002871,2]
[404651676,1770381046049,-13515.1458897,0.0002871,2]
[404651709,1770381064187,500.70058569,0.00013273,2]
[404651710,1770381070180,500.55876612,0.00013273,2]
[404651726,1770381073216,500.30004495,0.00013273,2]
[404651733,1770381077076,500.0,0.00013273,2]
[404651735,1770381077670,262.29560225,0.00013273,2]
[404651736,1770381077738,500.461115,0.00013273,2]
[404651737,1770381079639,612.7778861,0.00013273,2]
[404651738,1770381079992,500.40765274,0.00013273,2]
[404651740,1770381123890,547.91327131,0.00013699,2]
[404651741,1770381123915,20.10086337,0.00013699,2]
[404651742,1770381124027,500.0,0.00013273,2]
[404651743,1770381124147,549.6579667,0.00013273,2]
[404651744,1770381124289,500.0,0.00013699,2]
[404651745,1770381126553,500.0,0.00013699,2]
[404651746,1770381126675,500.0,0.00013699,2]
[404651749,1770381126809,500.0,0.00013699,2]
[404651752,1770381127044,500.0,0.00013699,2]
[404651753,1770381127074,500.22310915,0.00013699,2]
[404651754,1770381127242,500.0,0.00013699,2]
[404651755,1770381128030,500.0,0.00013699,2]
[404651756,1770381128272,500.0,0.00013699,2]
[404651757,1770381129040,500.61278183,0.00013699,2]
[404651758,1770381131067,500.0,0.00013273,2]
[404651759,1770381131245,500.0,0.00013273,2]
[404651760,1770381131333,596.61837485,0.00013699,2]
[404651761,1770381132043,521.02620673,0.00013699,2]
[404651762,1770381132135,500.2330288,0.00013699,2]
[404651763,1770381132464,500.0,0.00013273,2]
[404651764,1770381133351,500.41639703,0.00013699,2]
[404651765,1770381133618,500.0,0.00013273,2]
[404651766,1770381133839,500.0,0.00013273,2]
[404651767,1770381133993,500.0,0.00013273,2]
[404651768,1770381134258,501.97858733,0.00013273,2]
[404651769,1770381134318,159.09012006,0.00013699,2]
[404651770,1770381134419,500.0,0.00013699,2]
[404651771,1770381134710,500.0,0.00013699,2]
[404651772,1770381134790,500.0,0.00013699,2]
[404651773,1770381134818,159.88482456,0.00013273,2]
[404651774,1770381135809,300.0,0.00013673,2]
[404651775,1770381136046,500.0,0.00013273,2]
[404651776,1770381136137,500.0,0.00013699,2]
[404651777,1770381136318,308.96505359,0.00013699,2]
[404651778,1770381136613,500.0,0.00013699,2]
[404651779,1770381136886,500.0,0.00013273,2]
[404651780,1770381137016,500.00779773,0.00013699,2]
[404651781,1770381137602,500.0,0.00013273,2]
[404651782,1770381137629,500.0,0.00013699,2]
[404651783,1770381137997,500.5160634,0.00013699,2]
[404651784,1770381144516,-317.73471357,0.00013821,2]
[404651785,1770381144545,-978.635445,0.00013821,2]
[404651786,1770381148661,-22.00461846,0.00013821,2]
[404651787,1770381148692,-1000.0,0.00013821,2]
[404651788,1770381148723,-1000.0,0.00013821,2]
[404651789,1770381148755,-1006.3309821,0.00013821,2]
[404651790,1770381148788,-1000.0,0.00013821,2]
[404651791,1770381148819,-943.33879888,0.00013821,2]
[404651792,1770381148953,-56.66120112,0.00013821,2]
[404651793,1770381148986,-1000.0,0.00013821,2]
[404651794,1770381149018,-1000.0,0.00013821,2]
[404651795,1770381149047,-1000.0,0.00013821,2]
[404651796,1770381163554,-600.0,0.00014221,2]
[404651797,1770381183832,500.0,0.00013273,2]
[404651798,1770381183885,405.3060058,0.00013821,2]
[404651799,1770381183976,160.86413071,0.00013699,2]
[404651800,1770381184026,500.30090686,0.00013273,2]
[404651801,1770381184062,500.0,0.00013273,2]
[404651802,1770381184101,1000.0,0.00013821,2]
[404651803,1770381184130,538.39048385,0.00013273,2]
[404651804,1770381184159,160.38675046,0.00013699,2]
[404651805,1770381184188,1340.67069541,0.00014368,2]
[404651806,1770381184802,500.6396717,0.00013699,2]
[404651807,1770381186017,500.35534999,0.00013699,2]
[404651808,1770381186497,320.37583027,0.00013699,2]
[404651809,1770381186788,500.0,0.00013699,2]
[404651810,1770381186826,500.0,0.00013273,2]
[404651811,1770381186860,1000.0,0.00014247,2]
[404651812,1770381186890,500.0,0.00013699,2]
[404651813,1770381186922,1000.0,0.00013821,2]
[404651814,1770381186956,72.72017495,0.00014795,2]
[404651815,1770381186981,1155.13081675,0.00014795,2]
[404651816,1770381187011,1000.0,0.00014247,2]
[404651817,1770381187041,1500.0,0.00014368,2]
[404651818,1770381187076,500.0,0.00013273,2]
[404651819,1770381187110,329.84540431,0.00014795,2]
[404651820,1770381187149,1000.0,0.00013821,2]
[404651821,1770381187179,165.78142104,0.00013699,2]
[404651822,1770381187209,1500.0,0.00014368,2]
[404651823,1770381187239,500.0,0.00013699,2]
[404651824,1770381187269,313.27720675,0.00013699,2]
[404651825,1770381187314,1000.0,0.00014247,2]
[404651826,1770381187348,500.0,0.00013699,2]
[404651827,1770381187377,372.35853343,0.00014795,2]
[404651828,1770381187412,163.61661772,0.00014247,2]
[404651829,1770381187439,836.38338228,0.00014247,2]
[404651830,1770381187469,428.61119807,0.00014795,2]
[404651831,1770381187862,500.0,0.00013273,2]
[404651832,1770381187917,651.62537792,0.00013821,2]
[404651833,1770381188135,537.16212117,0.00013699,2]
[404651834,1770381188889,500.0,0.00013699,2]
[404651835,1770381188941,1001.12326969,0.00014247,2]
[404651836,1770381189369,497.2156223,0.00013273,2]
[404651837,1770381190643,500.0,0.00013273,2]
[404651838,1770381190697,717.72961326,0.00013821,2]
[404651839,1770381190737,500.0,0.00013699,2]
[404651840,1770381190793,1000.0,0.00014247,2]
[404651841,1770381190851,1000.83474784,0.00014795,2]
[404651842,1770381191127,500.0,0.00013273,2]
[404651843,1770381191165,473.53260077,0.00014368,2]
[404651844,1770381191195,355.7920667,0.00013821,2]
[404651845,1770381191221,644.2079333,0.00013821,2]
[404651846,1770381191285,500.0,0.00013273,2]
[404651847,1770381191313,1000.0,0.00013821,2]
[404651848,1770381191352,1500.0,0.00014368,2]
[404651849,1770381191456,500.0,0.00013699,2]
[404651850,1770381191506,1000.0,0.00014247,2]
[404651851,1770381191586,1501.10363565,0.00014795,2]
[404651852,1770381191722,500.0,0.00013273,2]
[404651853,1770381191774,989.58305288,0.00013821,2]
[404651854,1770381193355,500.0,0.00013699,2]
[404651855,1770381193408,1000.0,0.00014247,2]
[404651856,1770381193463,365.11537817,0.00014795,2]
[404651857,1770381193485,784.82723865,0.00014795,2]
[404651858,1770381194158,500.0,0.00013699,2]
[404651859,1770381194317,500.0,0.00013699,2]
[404651860,1770381194350,1000.0,0.00014247,2]
[404651861,1770381194377,1000.0,0.00014247,2]
[404651862,1770381194408,1500.0,0.00014795,2]
[404651863,1770381194435,1500.81331725,0.00014795,2]
[404651864,1770381194548,500.0,0.00013699,2]
[404651865,1770381194584,502.09662769,0.00014247,2]
[404651866,1770381195059,504.454237,0.00013273,2]
[404651867,1770381195316,500.0,0.00013699,2]
[404651868,1770381195475,-1000.0,0.00014247,2]
[404651869,1770381195508,-1500.75494106,0.00014795,2]
[404651870,1770381196713,500.0,0.00013699,2]
[404651871,1770381196743,500.0,0.00013699,2]
[404651872,1770381196769,606.33858642,0.00014247,2]
[404651873,1770381196796,1002.24877944,0.00014795,2]
[404651874,1770381196836,164.37953712,0.00013699,2]
[404651875,1770381196863,1000.0,0.00014247,2]
[404651876,1770381197540,500.0,0.00013699,2]
[404651877,1770381197593,725.5332149,0.00014247,2]
[404651878,1770381197923,174.12269926,0.00013699,2]
[404651879,1770381198090,500.0,0.00013699,2]
[404651880,1770381198618,500.0,0.00013699,2]
[404651881,1770381198826,500.0,0.00013273,2]
[404651882,1770381199428,500.0,0.00013699,2]
[404651883,1770381199867,556.02057263,0.00013699,2]
[404651884,1770381200312,500.0,0.00013699,2]
[404651885,1770381200514,500.0,0.00013699,2]
[404651886,1770381200805,500.0,0.00013273,2]
[404651887,1770381200942,500.0,0.00013273,2]
[404651888,1770381206743,-1000.0,0.00013821,2]
[404651889,1770381206772,-1000.0,0.00013821,2]
[404651890,1770381206801,-1000.0,0.00013821,2]
[404651891,1770381206831,-274.4667851,0.00014247,2]
[404651892,1770381206861,-1000.0,0.00014247,2]
[404651893,1770381206889,-451.0764298,0.00014247,2]
[404651894,1770381207024,-548.9235702,0.00014247,2]
[404651895,1770381207052,-1000.0,0.00014247,2]
[404651896,1770381207081,-961.32870613,0.00014247,2]
[404651897,1770381207113,-1000.0,0.00014247,2]
[404651898,1770381207144,-1479.50544734,0.00014368,2]
[404651899,1770381209630,-20.49455266,0.00014368,2]